[Event "*** Titled Tuesday Blitz"]
[Site "Chess.com"]
[Date "2020.04.07"]
[Round "8"]
[White "EugeneRougon"]
[Black "AttilaTurzo"]
[Result "1-0"]
[WhiteElo "2706"]
[BlackElo "2507"]
[TimeControl "180+1"]
[EndTime "14:34:10 PDT"]
[Termination "EugeneRougon won by resignation"]

1. e4 {[%clk 0:03:00.9]} 1... c5 {[%clk 0:02:59]} 2. Nf3 {[%clk 0:03:00.3]} 2...
g6 {[%clk 0:02:58.1]} 3. c3 {[%clk 0:03:00.2]} 3... Bg7 {[%clk 0:02:52.5]} 4. d4
{[%clk 0:03:00.4]} 4... cxd4 {[%clk 0:02:51.2]} 5. cxd4 {[%clk 0:03:01.3]} 5...
d5 {[%clk 0:02:52.1]} 6. e5 {[%clk 0:03:01.9]} 6... a6 {[%clk 0:02:45.8]} 7. h3
{[%clk 0:02:55.2]} 7... Nc6 {[%clk 0:02:45.2]} 8. Nc3 {[%clk 0:02:55.3]} 8... f6
{[%clk 0:02:45]} 9. Bf4 {[%clk 0:02:49.4]} 9... fxe5 {[%clk 0:02:41.8]} 10. dxe5
{[%clk 0:02:50.3]} 10... e6 {[%clk 0:02:42.2]} 11. Qd2 {[%clk 0:01:41.2]} 11...
Nge7 {[%clk 0:02:40.1]} 12. Bd3 {[%clk 0:01:35.8]} 12... O-O {[%clk 0:02:38.8]}
13. O-O {[%clk 0:01:35.9]} 13... b5 {[%clk 0:02:36.1]} 14. Rac1 {[%clk
0:01:26.3]} 14... Bd7 {[%clk 0:02:31.4]} 15. Rfe1 {[%clk 0:01:24.3]} 15... Nf5
{[%clk 0:02:28.3]} 16. Ne2 {[%clk 0:01:13.3]} 16... Kh8 {[%clk 0:02:26.6]} 17.
Bg5 {[%clk 0:01:09.6]} 17... Qb6 {[%clk 0:02:23.6]} 18. Nf4 {[%clk 0:01:07.3]}
18... Rac8 {[%clk 0:02:15]} 19. h4 {[%clk 0:01:02.2]} 19... Nfd4 {[%clk
0:02:01.2]} 20. Nh2 {[%clk 0:00:20.5]} 20... Nxe5 {[%clk 0:01:52.7]} 21. Rxc8
{[%clk 0:00:21.4]} 21... Bxc8 {[%clk 0:01:51.2]} 22. h5 {[%clk 0:00:21.5]} 22...
Nxd3 {[%clk 0:01:15.6]} 23. Qxd3 {[%clk 0:00:18.2]} 23... e5 {[%clk 0:01:04.5]}
24. h6 {[%clk 0:00:18.3]} 24... Bf6 {[%clk 0:00:59.8]} 25. Nxd5 {[%clk
0:00:17.5]} 25... Bf5 {[%clk 0:00:54.3]} 26. Qd1 {[%clk 0:00:15.1]} 26... Qc6
{[%clk 0:00:47.7]} 27. Nxf6 {[%clk 0:00:14.9]} 27... Rxf6 {[%clk 0:00:48.6]} 28.
Bxf6+ {[%clk 0:00:15]} 28... Qxf6 {[%clk 0:00:49.5]} 29. Qd2 {[%clk 0:00:15.1]}
29... Kg8 {[%clk 0:00:43.2]} 30. Rc1 {[%clk 0:00:14.6]} 30... Qd6 {[%clk
0:00:38.5]} 31. Qe3 {[%clk 0:00:13]} 31... b4 {[%clk 0:00:27.1]} 32. Nf3 {[%clk
0:00:13]} 32... Nxf3+ {[%clk 0:00:22.8]} 33. Qxf3 {[%clk 0:00:13.9]} 33... e4
{[%clk 0:00:20.5]} 34. Qe3 {[%clk 0:00:14.3]} 34... Qd3 {[%clk 0:00:16.1]} 35.
Qa7 {[%clk 0:00:13.7]} 35... Qd2 {[%clk 0:00:14.6]} 1-0

[Event "*** Titled Tuesday Blitz"]
[Site "Chess.com"]
[Date "2020.04.07"]
[Round "8"]
[White "Blitzking642"]
[Black "garfield_pg"]
[Result "1/2-1/2"]
[WhiteElo "2397"]
[BlackElo "2238"]
[TimeControl "180+1"]
[EndTime "14:34:10 PDT"]
[Termination "Game drawn by agreement"]

1. d4 {[%clk 0:03:00.8]} 1... Nf6 {[%clk 0:02:59.1]} 2. c4 {[%clk 0:03:01.3]}
2... g6 {[%clk 0:02:59.3]} 3. Nc3 {[%clk 0:03:01.7]} 3... Bg7 {[%clk 0:02:59.7]}
4. e4 {[%clk 0:03:01.9]} 4... d6 {[%clk 0:03:00.2]} 5. Be2 {[%clk 0:03:02.6]}
5... O-O {[%clk 0:03:00.7]} 6. Nf3 {[%clk 0:03:03.3]} 6... c5 {[%clk 0:03:01.1]}
7. O-O {[%clk 0:03:01.2]} 7... cxd4 {[%clk 0:03:01.6]} 8. Nxd4 {[%clk
0:03:01.3]} 8... Nc6 {[%clk 0:03:02]} 9. Be3 {[%clk 0:03:01.1]} 9... Nxd4 {[%clk
0:03:02.4]} 10. Bxd4 {[%clk 0:03:00.5]} 10... Qa5 {[%clk 0:03:02.9]} 11. f3
{[%clk 0:02:58.5]} 11... Be6 {[%clk 0:03:02.6]} 12. Qd2 {[%clk 0:02:57.5]} 12...
Rfc8 {[%clk 0:02:58.1]} 13. b3 {[%clk 0:02:57.5]} 13... a6 {[%clk 0:02:58.1]}
14. Rfd1 {[%clk 0:02:54.9]} 14... b5 {[%clk 0:02:58]} 15. cxb5 {[%clk
0:02:48.5]} 15... axb5 {[%clk 0:02:42.2]} 16. Nd5 {[%clk 0:01:50.4]} 16... Qxd2
{[%clk 0:01:42.7]} 17. Rxd2 {[%clk 0:01:50.5]} 17... Nxd5 {[%clk 0:00:47.4]} 18.
exd5 {[%clk 0:01:51.4]} 18... Bh6 {[%clk 0:00:37.2]} 19. Rdd1 {[%clk 0:01:40.1]}
19... Bxd5 {[%clk 0:00:35.9]} 20. Bxb5 {[%clk 0:01:39.6]} 20... Rc2 {[%clk
0:00:30.5]} 21. Bf2 {[%clk 0:01:07.2]} 21... Be6 {[%clk 0:00:20.4]} 22. Ba4
{[%clk 0:00:58.9]} 22... Bg7 {[%clk 0:00:17.9]} 23. Rac1 {[%clk 0:00:58.2]}
23... Rxa2 {[%clk 0:00:16.4]} 24. Rc7 {[%clk 0:00:58.7]} 24... Rb2 {[%clk
0:00:14.2]} 25. Rxe7 {[%clk 0:00:54.4]} 25... Bxb3 {[%clk 0:00:14.6]} 26. Bxb3
{[%clk 0:00:53]} 26... Rxb3 {[%clk 0:00:15.5]} 27. h4 {[%clk 0:00:46.1]} 27...
Be5 {[%clk 0:00:13.4]} 28. Rc1 {[%clk 0:00:37.6]} 28... Ra1 {[%clk 0:00:11.6]}
29. Rxa1 {[%clk 0:00:37.1]} 29... Bxa1 {[%clk 0:00:12.5]} 30. Bg3 {[%clk
0:00:36.3]} 30... Rd3 {[%clk 0:00:11.2]} 31. Rd7 {[%clk 0:00:35.2]} 31... Bd4+
{[%clk 0:00:10.4]} 32. Kf1 {[%clk 0:00:34.1]} 32... Bc5 {[%clk 0:00:10.2]} 33.
Ke2 {[%clk 0:00:33.8]} 33... Rd4 {[%clk 0:00:09.8]} 34. Bf2 {[%clk 0:00:31.2]}
34... Rd5 {[%clk 0:00:09.8]} 35. Bxc5 {[%clk 0:00:30.7]} 35... Rxc5 {[%clk
0:00:10.5]} 36. Rxd6 {[%clk 0:00:31.3]} 36... Rc2+ {[%clk 0:00:11.1]} 37. Kf1
{[%clk 0:00:31.3]} 37... h5 {[%clk 0:00:10.7]} 38. Rd4 {[%clk 0:00:28.6]} 38...
Kg7 {[%clk 0:00:10.2]} 39. Kg1 {[%clk 0:00:27.6]} 39... Kf6 {[%clk 0:00:09.7]}
40. Kh2 {[%clk 0:00:27.9]} 1/2-1/2

[Event "*** Titled Tuesday Blitz"]
[Site "Chess.com"]
[Date "2020.04.07"]
[Round "8"]
[White "vova-79"]
[Black "saraswathii"]
[Result "0-1"]
[WhiteElo "2404"]
[BlackElo "2261"]
[TimeControl "180+1"]
[EndTime "14:34:13 PDT"]
[Termination "saraswathii won by resignation"]

1. d4 {[%clk 0:02:56.5]} 1... Nf6 {[%clk 0:02:55.9]} 2. c4 {[%clk 0:02:56.1]}
2... d6 {[%clk 0:02:52.5]} 3. Nf3 {[%clk 0:02:54.5]} 3... g6 {[%clk 0:02:50]} 4.
Nc3 {[%clk 0:02:52.9]} 4... Bg7 {[%clk 0:02:50.1]} 5. g3 {[%clk 0:02:53.3]} 5...
O-O {[%clk 0:02:50]} 6. Bg2 {[%clk 0:02:54]} 6... Bf5 {[%clk 0:02:49.6]} 7. O-O
{[%clk 0:02:52.5]} 7... c6 {[%clk 0:02:48.7]} 8. Nh4 {[%clk 0:02:51.2]} 8... Bg4
{[%clk 0:02:42]} 9. h3 {[%clk 0:02:50.5]} 9... Be6 {[%clk 0:02:35.6]} 10. d5
{[%clk 0:02:48.4]} 10... cxd5 {[%clk 0:02:33]} 11. cxd5 {[%clk 0:02:49.3]} 11...
Bd7 {[%clk 0:02:32.6]} 12. e4 {[%clk 0:02:48.4]} 12... Na6 {[%clk 0:02:32.1]}
13. Be3 {[%clk 0:02:44.5]} 13... b6 {[%clk 0:02:30.6]} 14. f4 {[%clk 0:02:40.3]}
14... Rc8 {[%clk 0:02:27]} 15. Rc1 {[%clk 0:02:36.9]} 15... Nh5 {[%clk
0:02:26.1]} 16. Kh2 {[%clk 0:02:31.2]} 16... e6 {[%clk 0:02:21.6]} 17. dxe6
{[%clk 0:02:26.5]} 17... Bxe6 {[%clk 0:02:21.1]} 18. Qa4 {[%clk 0:02:18]} 18...
Nc5 {[%clk 0:02:15.3]} 19. Qa3 {[%clk 0:01:56.6]} 19... Nd3 {[%clk 0:02:11.6]}
20. Rcd1 {[%clk 0:01:49.9]} 20... Nxb2 {[%clk 0:02:10.4]} 21. Rxd6 {[%clk
0:01:49.7]} 21... Qe7 {[%clk 0:02:09]} 22. Nb5 {[%clk 0:01:26.4]} 22... Nc4
{[%clk 0:02:05.9]} 23. Qd3 {[%clk 0:01:24.9]} 23... Nxe3 {[%clk 0:01:49.6]} 24.
Qxe3 {[%clk 0:01:24.7]} 24... Bc4 {[%clk 0:01:49.2]} 25. Rfd1 {[%clk 0:01:01.6]}
25... Bxb5 {[%clk 0:01:47.3]} 26. e5 {[%clk 0:01:02.2]} 26... Ba4 {[%clk
0:01:31.2]} 27. R1d4 {[%clk 0:00:58.4]} 27... Bc2 {[%clk 0:01:14.3]} 28. Nf3
{[%clk 0:00:42.6]} 28... Rfd8 {[%clk 0:01:07.1]} 29. Rxd8+ {[%clk 0:00:32.9]}
29... Rxd8 {[%clk 0:01:06.7]} 30. Rxd8+ {[%clk 0:00:32.8]} 30... Qxd8 {[%clk
0:01:06.3]} 31. g4 {[%clk 0:00:33.3]} 31... Nxf4 {[%clk 0:01:04.4]} 32. Qxf4
{[%clk 0:00:34.2]} 32... Bd1 {[%clk 0:01:02.4]} 33. Kh1 {[%clk 0:00:26.1]} 33...
Qd5 {[%clk 0:00:46]} 34. Ng5 {[%clk 0:00:24.1]} 34... Qxa2 {[%clk 0:00:44.8]}
35. Qd4 {[%clk 0:00:20.4]} 35... h6 {[%clk 0:00:33.4]} 36. Bd5 {[%clk
0:00:18.3]} 36... Bb3 {[%clk 0:00:29.7]} 37. Bxb3 {[%clk 0:00:11]} 37... Qxb3
{[%clk 0:00:29]} 38. Qd8+ {[%clk 0:00:11.1]} 38... Bf8 {[%clk 0:00:28.3]} 39. e6
{[%clk 0:00:10.2]} 39... Qb1+ {[%clk 0:00:20.8]} 40. Kg2 {[%clk 0:00:09.5]}
40... Qb2+ {[%clk 0:00:20]} 41. Kf1 {[%clk 0:00:08.2]} 41... hxg5 {[%clk
0:00:16.7]} 42. exf7+ {[%clk 0:00:06.8]} 42... Kxf7 {[%clk 0:00:16]} 43. Qd5+
{[%clk 0:00:06.8]} 0-1

[Event "*** Titled Tuesday Blitz"]
[Site "Chess.com"]
[Date "2020.04.07"]
[Round "8"]
[White "suyu28"]
[Black "Leonid_Starozhilov"]
[Result "1-0"]
[WhiteElo "2511"]
[BlackElo "2654"]
[TimeControl "180+1"]
[EndTime "14:34:15 PDT"]
[Termination "suyu28 won by resignation"]

1. e4 {[%clk 0:03:00]} 1... g6 {[%clk 0:02:59.1]} 2. d4 {[%clk 0:03:00]} 2...
Bg7 {[%clk 0:02:58.8]} 3. Nc3 {[%clk 0:03:00.5]} 3... d6 {[%clk 0:02:59.3]} 4.
Nf3 {[%clk 0:03:00.3]} 4... Nf6 {[%clk 0:02:57.5]} 5. h3 {[%clk 0:02:57.5]} 5...
O-O {[%clk 0:02:56.7]} 6. Be3 {[%clk 0:02:57.6]} 6... a6 {[%clk 0:02:55.1]} 7.
a4 {[%clk 0:02:52.2]} 7... Nc6 {[%clk 0:02:55.1]} 8. a5 {[%clk 0:02:49.3]} 8...
e5 {[%clk 0:02:43.6]} 9. d5 {[%clk 0:02:32.4]} 9... Ne7 {[%clk 0:02:41]} 10. g4
{[%clk 0:02:30.3]} 10... c6 {[%clk 0:02:37.7]} 11. Bb6 {[%clk 0:02:25.7]} 11...
Qe8 {[%clk 0:02:26.1]} 12. Be2 {[%clk 0:02:17.9]} 12... cxd5 {[%clk 0:01:55.2]}
13. exd5 {[%clk 0:02:12.7]} 13... Bd7 {[%clk 0:01:24.8]} 14. g5 {[%clk
0:02:11.5]} 14... Nh5 {[%clk 0:01:24.4]} 15. Ne4 {[%clk 0:02:11.1]} 15... Nf5
{[%clk 0:01:24.4]} 16. Nfd2 {[%clk 0:02:02.4]} 16... Nf4 {[%clk 0:01:23]} 17.
Bg4 {[%clk 0:01:52.3]} 17... Nxd5 {[%clk 0:01:15.6]} 18. Bxf5 {[%clk 0:01:51.6]}
18... Bxf5 {[%clk 0:00:51.8]} 19. Nxd6 {[%clk 0:01:50.1]} 19... Qc6 {[%clk
0:00:26.4]} 20. Nxf5 {[%clk 0:01:36]} 20... gxf5 {[%clk 0:00:27.3]} 21. Rg1
{[%clk 0:01:20.5]} 21... Nxb6 {[%clk 0:00:25.3]} 22. axb6 {[%clk 0:01:19.9]}
22... Rad8 {[%clk 0:00:25.2]} 23. Qc1 {[%clk 0:01:15.6]} 23... e4 {[%clk
0:00:21.5]} 24. c3 {[%clk 0:01:10.4]} 24... f4 {[%clk 0:00:20.5]} 25. Qc2 {[%clk
0:01:07.5]} 25... e3 {[%clk 0:00:11.9]} 26. Ne4 {[%clk 0:00:45.9]} 26... exf2+
{[%clk 0:00:07.9]} 27. Kxf2 {[%clk 0:00:44.1]} 27... Kh8 {[%clk 0:00:06.4]} 28.
Rae1 {[%clk 0:00:38.3]} 28... Qxb6+ {[%clk 0:00:06.3]} 29. Kf3 {[%clk
0:00:38.5]} 29... Qc6 {[%clk 0:00:06.7]} 30. Rd1 {[%clk 0:00:30.7]} 30... Rde8
{[%clk 0:00:06.3]} 31. Rge1 {[%clk 0:00:30.4]} 31... Re6 {[%clk 0:00:06.2]} 32.
Qd3 {[%clk 0:00:27.7]} 32... Rfe8 {[%clk 0:00:06.5]} 33. Qd5 {[%clk 0:00:27.6]}
33... Qc8 {[%clk 0:00:05.2]} 34. Nd6 {[%clk 0:00:19.9]} 34... Re3+ {[%clk
0:00:04.6]} 35. Kf2 {[%clk 0:00:17.9]} 35... Rxe1 {[%clk 0:00:02.1]} 36. Nxf7+
{[%clk 0:00:17.9]} 1-0

[Event "*** Titled Tuesday Blitz"]
[Site "Chess.com"]
[Date "2020.04.07"]
[Round "8"]
[White "tomsishere"]
[Black "ama18"]
[Result "0-1"]
[WhiteElo "2288"]
[BlackElo "2450"]
[TimeControl "180+1"]
[EndTime "14:34:16 PDT"]
[Termination "ama18 won by checkmate"]

1. d4 {[%clk 0:03:00.9]} 1... Nf6 {[%clk 0:02:59.6]} 2. c4 {[%clk 0:03:00.5]}
2... e6 {[%clk 0:02:59.5]} 3. Nc3 {[%clk 0:03:00.2]} 3... Bb4 {[%clk 0:02:59.6]}
4. Qc2 {[%clk 0:03:00.4]} 4... d6 {[%clk 0:02:57.8]} 5. Nf3 {[%clk 0:02:59.2]}
5... O-O {[%clk 0:02:55.9]} 6. Bd2 {[%clk 0:02:56.7]} 6... b6 {[%clk 0:02:51.1]}
7. g3 {[%clk 0:02:56.6]} 7... Bb7 {[%clk 0:02:50.8]} 8. Bg2 {[%clk 0:02:56.9]}
8... Nbd7 {[%clk 0:02:44.3]} 9. O-O {[%clk 0:02:54.7]} 9... Bxc3 {[%clk
0:02:44.5]} 10. Bxc3 {[%clk 0:02:54]} 10... Ne4 {[%clk 0:02:42.3]} 11. Rad1
{[%clk 0:02:24]} 11... Nxc3 {[%clk 0:02:40]} 12. Qxc3 {[%clk 0:02:22.6]} 12...
Qe7 {[%clk 0:02:36.5]} 13. d5 {[%clk 0:02:13.3]} 13... e5 {[%clk 0:02:31.1]} 14.
b4 {[%clk 0:02:00.9]} 14... a5 {[%clk 0:02:28]} 15. a3 {[%clk 0:01:59.5]} 15...
f5 {[%clk 0:02:26.4]} 16. Nd2 {[%clk 0:01:31.8]} 16... Rf6 {[%clk 0:02:05.5]}
17. bxa5 {[%clk 0:01:10.6]} 17... Rxa5 {[%clk 0:02:06.4]} 18. Nb3 {[%clk
0:01:07.6]} 18... Ra4 {[%clk 0:01:55.1]} 19. f4 {[%clk 0:00:55.5]} 19... Ba6
{[%clk 0:01:45.5]} 20. Nd2 {[%clk 0:00:51.5]} 20... exf4 {[%clk 0:01:29.2]} 21.
Rxf4 {[%clk 0:00:49.1]} 21... Qxe2 {[%clk 0:01:12.6]} 22. Bf3 {[%clk 0:00:22.1]}
22... Qe5 {[%clk 0:01:10.8]} 23. Qc2 {[%clk 0:00:18.5]} 23... Rxa3 {[%clk
0:01:04.3]} 24. Bg2 {[%clk 0:00:16.6]} 24... Qc3 {[%clk 0:00:54.2]} 25. Qb1
{[%clk 0:00:13.8]} 25... g6 {[%clk 0:00:44.1]} 26. Nf3 {[%clk 0:00:13.5]} 26...
Bxc4 {[%clk 0:00:38.1]} 27. Rc1 {[%clk 0:00:12.3]} 27... Qe3+ {[%clk 0:00:38.1]}
28. Kh1 {[%clk 0:00:12.8]} 28... Bxd5 {[%clk 0:00:35.4]} 29. Qb2 {[%clk
0:00:09.9]} 29... Rb3 {[%clk 0:00:30.1]} 30. Qa2 {[%clk 0:00:07.7]} 30... Qxc1+
{[%clk 0:00:27.9]} 31. Ng1 {[%clk 0:00:05.8]} 31... Bxg2+ {[%clk 0:00:27.5]} 32.
Kxg2 {[%clk 0:00:06]} 32... Nc5 {[%clk 0:00:23.2]} 33. Qa8+ {[%clk 0:00:04.4]}
33... Kg7 {[%clk 0:00:22.9]} 34. Qd8 {[%clk 0:00:04.2]} 34... Rb2+ {[%clk
0:00:21.9]} 35. Kh3 {[%clk 0:00:03.6]} 35... Qxg1 {[%clk 0:00:20]} 36. Qxc7+
{[%clk 0:00:03.3]} 36... Rf7 {[%clk 0:00:20.4]} 37. Qxf7+ {[%clk 0:00:03]} 37...
Kxf7 {[%clk 0:00:20.1]} 38. Rxf5+ {[%clk 0:00:03.3]} 38... gxf5 {[%clk
0:00:19.9]} 39. Kh4 {[%clk 0:00:04.2]} 39... Qxh2+ {[%clk 0:00:20.1]} 40. Kg5
{[%clk 0:00:05]} 40... Ne6+ {[%clk 0:00:19.2]} 41. Kxf5 {[%clk 0:00:04.9]} 41...
Qh5+ {[%clk 0:00:19.6]} 42. Ke4 {[%clk 0:00:05.1]} 42... Rb4+ {[%clk 0:00:20.2]}
43. Kd3 {[%clk 0:00:05.1]} 43... Qf3+ {[%clk 0:00:20.3]} 44. Kc2 {[%clk
0:00:05.4]} 44... Nd4+ {[%clk 0:00:20.5]} 45. Kd2 {[%clk 0:00:05.5]} 45... Rb2+
{[%clk 0:00:20.5]} 46. Kc1 {[%clk 0:00:06.1]} 46... Qc3+ {[%clk 0:00:20.6]} 47.
Kd1 {[%clk 0:00:05.9]} 47... Qd2# {[%clk 0:00:21.5]} 0-1

[Event "*** Titled Tuesday Blitz"]
[Site "Chess.com"]
[Date "2020.04.07"]
[Round "8"]
[White "esskeettit"]
[Black "NMZanette"]
[Result "1-0"]
[WhiteElo "2327"]
[BlackElo "2175"]
[TimeControl "180+1"]
[EndTime "14:34:16 PDT"]
[Termination "esskeettit won by resignation"]

1. d4 {[%clk 0:03:00.9]} 1... f5 {[%clk 0:02:57.6]} 2. g3 {[%clk 0:03:00.1]}
2... Nf6 {[%clk 0:02:57]} 3. Bg2 {[%clk 0:03:00.4]} 3... e6 {[%clk 0:02:57]} 4.
Nf3 {[%clk 0:02:59.3]} 4... Be7 {[%clk 0:02:56.8]} 5. O-O {[%clk 0:02:59.3]}
5... O-O {[%clk 0:02:56.8]} 6. c4 {[%clk 0:02:59.4]} 6... d6 {[%clk 0:02:56.2]}
7. Nc3 {[%clk 0:02:59.5]} 7... Qe8 {[%clk 0:02:53.8]} 8. Qc2 {[%clk 0:02:56.7]}
8... Nc6 {[%clk 0:02:50.2]} 9. Re1 {[%clk 0:02:53.7]} 9... e5 {[%clk 0:02:46.7]}
10. dxe5 {[%clk 0:02:47.9]} 10... dxe5 {[%clk 0:02:45]} 11. e4 {[%clk
0:02:47.9]} 11... f4 {[%clk 0:02:41.2]} 12. gxf4 {[%clk 0:02:44.9]} 12... Bg4
{[%clk 0:02:35.4]} 13. Nxe5 {[%clk 0:02:34]} 13... Nd4 {[%clk 0:02:13.7]} 14.
Qd3 {[%clk 0:02:22.3]} 14... Rd8 {[%clk 0:02:09.3]} 15. Nxg4 {[%clk 0:02:15.4]}
15... Nxg4 {[%clk 0:02:09.3]} 16. Nd5 {[%clk 0:02:15.2]} 16... Bc5 {[%clk
0:02:02.7]} 17. Be3 {[%clk 0:02:00.8]} 17... Ne6 {[%clk 0:01:12.5]} 18. Bxc5
{[%clk 0:01:57.6]} 18... Nxc5 {[%clk 0:01:12.2]} 19. Qg3 {[%clk 0:01:54.2]}
19... Nh6 {[%clk 0:00:35.8]} 20. Nxc7 {[%clk 0:01:43]} 20... Qf7 {[%clk
0:00:35.1]} 21. Nd5 {[%clk 0:01:42.1]} 21... Ne6 {[%clk 0:00:31.2]} 22. f5
{[%clk 0:01:38.6]} 22... Nd4 {[%clk 0:00:30.5]} 23. Rad1 {[%clk 0:01:34.6]}
23... Nc6 {[%clk 0:00:23.1]} 24. f6 {[%clk 0:01:27.4]} 24... g6 {[%clk
0:00:18.3]} 25. Rd2 {[%clk 0:01:04.2]} 25... Kh8 {[%clk 0:00:15.3]} 26. Red1
{[%clk 0:01:02.2]} 26... Qe6 {[%clk 0:00:12.9]} 27. Qh4 {[%clk 0:00:50.8]} 27...
Ng8 {[%clk 0:00:11.4]} 28. Nf4 {[%clk 0:00:44.2]} 28... Qxf6 {[%clk 0:00:06.6]}
29. Qxf6+ {[%clk 0:00:40.5]} 29... Nxf6 {[%clk 0:00:07.1]} 30. Ne6 {[%clk
0:00:34.8]} 30... Rxd2 {[%clk 0:00:06.6]} 31. Rxd2 {[%clk 0:00:35.4]} 31... Re8
{[%clk 0:00:07.2]} 32. Ng5 {[%clk 0:00:35.2]} 32... h6 {[%clk 0:00:06.1]} 33.
Nf7+ {[%clk 0:00:35.1]} 33... Kg7 {[%clk 0:00:06]} 34. Nd6 {[%clk 0:00:34.6]}
34... Re6 {[%clk 0:00:06.1]} 35. f4 {[%clk 0:00:32.5]} 35... b6 {[%clk
0:00:01.4]} 36. Kf2 {[%clk 0:00:26.5]} 36... Nb4 {[%clk 0:00:01.2]} 37. a3
{[%clk 0:00:24.9]} 37... Re7 {[%clk 0:00:01.7]} 38. axb4 {[%clk 0:00:24.6]} 1-0

[Event "*** Titled Tuesday Blitz"]
[Site "Chess.com"]
[Date "2020.04.07"]
[Round "8"]
[White "LivajaM"]
[Black "chessdjw"]
[Result "1/2-1/2"]
[WhiteElo "2355"]
[BlackElo "2644"]
[TimeControl "180+1"]
[EndTime "14:34:18 PDT"]
[Termination "Game drawn - insufficient material"]

1. d4 {[%clk 0:03:00.9]} 1... Nf6 {[%clk 0:02:26.2]} 2. Bg5 {[%clk 0:02:55.1]}
2... g6 {[%clk 0:02:22.5]} 3. Bxf6 {[%clk 0:02:55.1]} 3... exf6 {[%clk
0:02:22.1]} 4. c4 {[%clk 0:02:55.7]} 4... Bg7 {[%clk 0:02:19.7]} 5. e3 {[%clk
0:02:56.1]} 5... O-O {[%clk 0:02:19.5]} 6. g3 {[%clk 0:02:56.4]} 6... f5 {[%clk
0:02:19.7]} 7. Bg2 {[%clk 0:02:56.7]} 7... d6 {[%clk 0:02:20.3]} 8. Ne2 {[%clk
0:02:56.7]} 8... Nd7 {[%clk 0:02:20.9]} 9. O-O {[%clk 0:02:56.1]} 9... Nf6
{[%clk 0:02:21.5]} 10. Nbc3 {[%clk 0:02:56.2]} 10... Re8 {[%clk 0:02:21.5]} 11.
Qd3 {[%clk 0:02:55.2]} 11... a6 {[%clk 0:02:21.5]} 12. b4 {[%clk 0:02:54.8]}
12... Rb8 {[%clk 0:02:21.2]} 13. a4 {[%clk 0:02:54.4]} 13... Be6 {[%clk
0:02:14.6]} 14. a5 {[%clk 0:02:52.6]} 14... d5 {[%clk 0:02:11]} 15. cxd5 {[%clk
0:02:47]} 15... Nxd5 {[%clk 0:02:10.5]} 16. b5 {[%clk 0:02:40.8]} 16... axb5
{[%clk 0:02:08.4]} 17. Qxb5 {[%clk 0:02:33.8]} 17... c6 {[%clk 0:02:05.5]} 18.
Qb2 {[%clk 0:02:32.3]} 18... Nxc3 {[%clk 0:01:51.2]} 19. Qxc3 {[%clk 0:02:29.7]}
19... Qd7 {[%clk 0:01:50.4]} 20. Nf4 {[%clk 0:02:27.1]} 20... Ra8 {[%clk
0:01:48.7]} 21. Rfb1 {[%clk 0:02:23.3]} 21... Ra7 {[%clk 0:01:48.5]} 22. Rb2
{[%clk 0:02:13.8]} 22... Rc8 {[%clk 0:01:42.7]} 23. Rab1 {[%clk 0:02:13]} 23...
h5 {[%clk 0:01:37.7]} 24. Qc5 {[%clk 0:02:10.1]} 24... Rca8 {[%clk 0:01:34.9]}
25. Nxe6 {[%clk 0:02:01.7]} 25... Qxe6 {[%clk 0:01:28]} 26. Rxb7 {[%clk
0:01:59.4]} 26... Rxa5 {[%clk 0:01:24.2]} 27. Qxc6 {[%clk 0:01:58.3]} 27... Qxc6
{[%clk 0:01:21.8]} 28. Bxc6 {[%clk 0:01:57.7]} 28... Ra1 {[%clk 0:01:20.1]} 29.
Rxa1 {[%clk 0:01:51.9]} 29... Rxa1+ {[%clk 0:01:19.3]} 30. Kg2 {[%clk
0:01:52.2]} 30... Ra8 {[%clk 0:01:16.2]} 31. Rxf7 {[%clk 0:01:46.5]} 31... Kxf7
{[%clk 0:01:15.6]} 32. Bxa8 {[%clk 0:01:46.2]} 32... Kf6 {[%clk 0:01:12.8]} 33.
Bc6 {[%clk 0:01:44.9]} 33... Bf8 {[%clk 0:00:58.2]} 34. Be8 {[%clk 0:01:44.4]}
34... Bb4 {[%clk 0:00:58.4]} 35. Kf1 {[%clk 0:01:43.4]} 35... Bc3 {[%clk
0:00:58.7]} 36. Ke2 {[%clk 0:01:43.3]} 36... Bb4 {[%clk 0:00:59.4]} 37. h3
{[%clk 0:01:43.3]} 37... Ba5 {[%clk 0:00:59.6]} 38. f3 {[%clk 0:01:42.6]} 38...
Bb6 {[%clk 0:00:58.4]} 39. Kd3 {[%clk 0:01:41.9]} 39... Bc7 {[%clk 0:00:58.7]}
40. g4 {[%clk 0:01:36.5]} 40... hxg4 {[%clk 0:00:59]} 41. hxg4 {[%clk
0:01:34.3]} 41... Kg5 {[%clk 0:00:58.9]} 42. gxf5 {[%clk 0:01:29.7]} 42... gxf5
{[%clk 0:00:58.3]} 43. e4 {[%clk 0:01:29]} 43... fxe4+ {[%clk 0:00:58]} 44. fxe4
{[%clk 0:01:29.9]} 44... Kf6 {[%clk 0:00:52.8]} 45. Kc4 {[%clk 0:01:25.3]} 45...
Bb8 {[%clk 0:00:51.6]} 46. Kd5 {[%clk 0:01:24.4]} 46... Ke7 {[%clk 0:00:50.9]}
47. Bh5 {[%clk 0:01:23.5]} 47... Ba7 {[%clk 0:00:51.1]} 48. Ke5 {[%clk
0:01:22.3]} 48... Bb8+ {[%clk 0:00:51]} 49. Kd5 {[%clk 0:01:20.8]} 49... Ba7
{[%clk 0:00:51.9]} 50. e5 {[%clk 0:01:20.7]} 50... Bb8 {[%clk 0:00:50.4]} 51.
Bg4 {[%clk 0:01:17.8]} 51... Ba7 {[%clk 0:00:49.5]} 52. Bf5 {[%clk 0:01:16.4]}
52... Bb6 {[%clk 0:00:49.7]} 53. Ke4 {[%clk 0:01:12.3]} 53... Ba7 {[%clk
0:00:49.6]} 54. Kd5 {[%clk 0:01:09.9]} 54... Bb6 {[%clk 0:00:49.7]} 55. Kc4
{[%clk 0:01:09.1]} 55... Bc7 {[%clk 0:00:48.3]} 56. Kb5 {[%clk 0:01:07.7]} 56...
Kd8 {[%clk 0:00:31.1]} 57. Kc6 {[%clk 0:01:06.1]} 57... Bb8 {[%clk 0:00:31.5]}
58. Kb7 {[%clk 0:01:04.8]} 58... Bc7 {[%clk 0:00:31.5]} 59. Bg4 {[%clk
0:00:58.1]} 59... Ba5 {[%clk 0:00:31.6]} 60. d5 {[%clk 0:00:55]} 60... Bc3
{[%clk 0:00:31.3]} 61. e6 {[%clk 0:00:53.6]} 61... Bb4 {[%clk 0:00:31.3]} 62.
Kc6 {[%clk 0:00:51.3]} 62... Ke7 {[%clk 0:00:31.7]} 63. Bh5 {[%clk 0:00:51.3]}
63... Bd6 {[%clk 0:00:32.2]} 64. Be2 {[%clk 0:00:51.2]} 64... Be5 {[%clk
0:00:32.8]} 65. Ba6 {[%clk 0:00:51]} 65... Bd6 {[%clk 0:00:33.5]} 66. Bc8 {[%clk
0:00:50.9]} 66... Be5 {[%clk 0:00:34.4]} 67. Bd7 {[%clk 0:00:51.1]} 67... Bd6
{[%clk 0:00:35.3]} 68. Bc8 {[%clk 0:00:51.4]} 68... Be5 {[%clk 0:00:32.7]} 69.
d6+ {[%clk 0:00:51.9]} 69... Bxd6 {[%clk 0:00:33.2]} 70. Bd7 {[%clk 0:00:52.1]}
70... Be5 {[%clk 0:00:33.6]} 71. Be8 {[%clk 0:00:52.8]} 71... Bd6 {[%clk
0:00:34.5]} 72. Bd7 {[%clk 0:00:53.1]} 72... Be5 {[%clk 0:00:34.8]} 73. Be8
{[%clk 0:00:54]} 73... Kxe6 {[%clk 0:00:35.4]} 1/2-1/2